Cogmind - Beta 16 @@@ ROGUE MODE // 2025.12.22 @ 21:31:01 Player: Artackni Result: Destroyed by D-53 Grenadier with Mini Grenade Launcher Performance ------------- Evolutions (0) 0 Regions Visited (2) 400 Robots Destroyed (17) 85 Value Destroyed (312) 312 Prototype IDs (0) 0 Alien Tech Used (0) 0 Bonus (0) 0 TOTAL SCORE: 797 Bonus ------- None Cogmind --------- Core Integrity 0/250 Matter 290/300 Energy 224/240 System Corruption 0% Temperature Cool (0) Movement Core (500) Ox9 Location -10/Mines Parts ------- > --- POWER (1) -------- Nuclear Core > --- PROPULSION (2) --- (None) > --- UTILITY (2) ------ Medium Storage Unit Reactive Plating > --- WEAPON (2) ------- Light Assault Rifle Hammer > --- INVENTORY (10) --- Deuterium Engine Medium Matter Pod (100) Compact Matter Pod (139) Signal Interpreter Melee Analysis Suite Assault Rifle Light Assault Rifle Grenade Launcher Improved Grenade Launcher Hammer Peak State ------------ > --- POWER ------------ Nuclear Core > --- PROPULSION ------- Light Treads Light Treads > --- UTILITY ---------- Medium Storage Unit Compact Matter Pod > --- WEAPON ----------- Hammer Hammer > --- INVENTORY -------- Light Ion Engine Medium Matter Pod Signal Interpreter Melee Analysis Suite Reactive Plating Assault Rifle Light Assault Rifle Light Assault Rifle Grenade Launcher Improved Grenade Launcher [Rating: 12] Favorites ----------- Power Ion Engine Engine Ion Engine Power Core Nuclear Core Propulsion Light Treads Treads Light Treads Leg Aluminum Leg Utility Medium Storage Unit Device Seismic Detector Storage Medium Storage Unit Protection Reactive Plating Weapon Hammer Energy Gun Small Laser Ballistic Gun Assault Rifle Impact Weapon Hammer Build | -11 -10 -10 ------- Run | Yrd Mat Min Slots Evolved . | . . . Power . | . . . Propulsion . | . . . Utility . | . . . Weapon . | . . . Parts Attached 21 | 7 4 10 Power 4 | 1 1 2 Engine 3 | 1 1 1 Core 1 | . . 1 Reactor . | . . . Propulsion 5 | 2 1 2 Treads 2 | . . 2 Leg 3 | 2 1 . Wheel . | . . . Hover . | . . . Flight . | . . . Utility 5 | 2 1 2 Device 1 | 1 . . Storage 3 | 1 1 1 Processor . | . . . Hackware . | . . . Protection 1 | . . 1 Artifact . | . . . Weapon 7 | 2 1 4 Energy Gun 3 | 2 1 . Energy Cannon . | . . . Ballistic Gun 2 | . . 2 Ballistic Cannon . | . . . Launcher . | . . . Special Weapon . | . . . Impact Weapon 2 | . . 2 Slashing Weapon . | . . . Piercing Weapon . | . . . Special Melee Weapon . | . . . Unidentified Prototypes . | . . . Parts Lost 6 | . . 6 Power 1 | . . 1 Propulsion 3 | . . 3 Utility 1 | . . 1 Weapon 1 | . . 1 Highest Loss Streak 4 | . . 4 To Critical Strikes . | . . . Average Backups 8 | 2 8 9 Power . | . 1 1 Propulsion . | 1 2 . Utility 2 | . 2 3 Weapon 3 | . 3 4 Tool/Special . | . . . Unused Backups 8 | . . 8 Power 2 | . . 2 Propulsion . | . . . Utility 3 | . . 3 Weapon 3 | . . 3 Tool/Special . | . . . Average Slot Usage (%) 96 | . 100 94 Engine 9 | . 14 6 Core 4 | . . 6 Treads 16 | . . 24 Leg 11 | . 28 2 Device 5 | . 14 . Storage 20 | . 14 23 Energy Gun 14 | . 28 7 Ballistic Gun 3 | . . 5 Impact Weapon 9 | . . 14 Peak Build Rating 12 | 7 8 12 Average Rating 8 | 5 7 9 On Entrance 5 | . 7 8 Avg Prop Armor Cover (%) . | . . . Naked Turns . | . . . Heaviest Build 22 | 14 20 22 Greatest Support 40 | 20 20 40 Greatest Overweight (x) 1 | 1 . 1 Average Overweight (x) . | . . . Largest Inventory Capacity 10 | 8 10 10 Average Capacity 9 | 7 9 10 Most Carried 10 | 4 10 10 Average Carried 8 | 2 8 9 Final Capacity 10 | 8 10 10 Final Carried 10 | 4 10 10 Class Distribution -------------------- 100% | Mutant Dominant Class ---------------- Mutant | -10/Materials Mutant | -10/Mines Resources | -11 -10 -10 ----------- Run | Yrd Mat Min Matter Collected 504 | 219 87 198 Remotely . | . . . Salvage Created 559 | 66 317 176 Parts 37 | 7 14 16 Haulers Intercepted . | . . . Recyclers Shooed . | . . . Parts Field Recycled . | . . . Retrieved Matter . | . . . Parts Self-Destructed . | . . . Prevented . | . . . Parts Restored . | . . . Kills | -11 -10 -10 ------- Run | Yrd Mat Min Combat Hostiles Destroyed 11 | . 4 7 Melee 1 | . . 1 Guns 10 | . 4 6 Classes Destroyed 5 | 1 3 1 Tunneler 3 | 3 . . Recycler 2 | . 1 1 Operator 1 | . 1 . Swarmer 6 | . . 6 Grunt 5 | . 4 1 Best Kill Streak 5 | 2 5 5 Combat Bots Only 4 | . 4 4 Max Kills in Single Turn 1 | 1 1 1 Gunslinging . | . . . Exploded . | . . . Melee 1 | . . 1 Uniques/NPCs Destroyed . | . . . Combat | -11 -10 -10 -------- Run | Yrd Mat Min Hostile Shots Fired 96 | . 38 58 Missed 19 | . 9 10 Hits 77 | . 29 48 Projectile 77 | . 29 48 AOE 15 | . . 15 Damage Taken 1241 | . 366 875 Core 260 | . 77 183 Absorbed by Shields . | . . . Core Remaining (%) 100 | 100 . . Volleys Fired 49 | 16 16 17 Largest 2 | 2 2 2 Hottest 80 | 80 80 80 Shots Fired 84 | 19 32 33 Gun 84 | 19 32 33 Cannon . | . . . Launcher . | . . . Special . | . . . Kinetic 7 | . . 7 Thermal 35 | 16 3 16 Explosive . | . . . Electromagnetic 42 | 3 29 10 Robot Hit Streak 8 | 4 8 2 Robot Miss Streak 5 | 1 2 5 Penetration Max . | . . . Secondary Targets 2 | . 2 . Max Gunslinging Chain 1 | . 1 . Shots Hit Robots 51 | 13 23 15 Core Hits 21 | 3 11 7 Critical Kills . | . . . Critical Parts Destroyed 1 | . . 1 Critical Strikes 2 | . . 2 Corrupt 1 | . . 1 Smash 1 | . . 1 Melee Attacks 6 | . . 6 Impact 6 | . . 6 Slashing . | . . . Piercing . | . . . Sneak Attacks . | . . . Combat Hostiles . | . . . Follow-up Attacks 1 | . . 1 Damage Inflicted 730 | 152 354 224 Guns 608 | 152 307 149 Cannons . | . . . Explosions 47 | . 47 . Melee 75 | . . 75 Ramming . | . . . Kinetic 51 | . . 51 Thermal 237 | 124 58 55 Explosive . | . . . Electromagnetic 367 | 28 296 43 Impact 75 | . . 75 Slashing . | . . . Piercing . | . . . Highest Corruption . | . . . Average Corruption . | . . . Corruption Purged . | . . . Corruption Blocked . | . . . Overload Shots . | . . . Overflow Damage 33 | . . 33 Projectiles . | . . . Explosions . | . . . Melee 33 | . . 33 Knockbacks 1 | . . 1 Impact 1 | . . 1 Kinetic . | . . . Secondary . | . . . Self-Inflicted Damage 35 | . 35 . Shots 1 | . 1 . Rammed . | . . . Targets Rammed . | . . . Kicked . | . . . Crushed . | . . . Highest Temperature 360 | 54 360 162 Average Temperature 116 | 29 153 81 Received Heat Transfer 183 | . 150 33 Siege Activations . | . . . Martial Activations . | . . . Shielding Activations . | . . . Robots Disrupted . | . . . Combat Hostiles . | . . . Robots Corrupted . | . . . Combat Hostiles . | . . . Parts Fried 1 | . 1 . Impact Corruptions 1 | . . 1 Robots Melted . | . . . Combat Hostiles . | . . . Parts Melted . | . . . Heat Transferred 525 | 275 125 125 Parts Sabotaged . | . . . Parts Stolen . | . . . Parts Stripped . | . . . Power Chain Reactions 1 | . 1 . Alert | -11 -10 -10 ------- Run | Yrd Mat Min Maximum Alert Level . | . . . Low Security (%) 100 | 100 100 100 Level 1 . | . . . Level 2 . | . . . Level 3 . | . . . Level 4 . | . . . Level 5 . | . . . High Security . | . . . Max Security . | . . . Peak Influence 163 | 5 113 163 Initial 43 | . . 43 Average 34 | 1 20 47 Influence Increases 383 | 15 158 210 Destroy 0b10 Robot/C 220 | . 80 140 Destroy 0b10 Robot/NC 30 | 15 10 5 Destroy Leader 40 | . 20 20 Disable Machine 30 | . 15 15 Destroy Structure 3 | . 3 . Lose Combat Pursuer 60 | . 30 30 Influence Decreases 383 | 15 45 323 Entered New Map 70 | . . 70 Time Decay 273 | 15 45 213 Lost Part 40 | . . 40 Squads Dispatched 2 | . 1 1 Investigation 1 | . . 1 Extermination . | . . . Reinforcement 1 | . 1 . Assault . | . . . Garrison . | . . . Intercept . | . . . Searches Triggered . | . . . Construction Impeded . | . . . Haulers Reinforced . | . . . Active Scanning Responses . | . . . Cargo Convoy Interrupts . | . . . Stealth | -11 -10 -10 --------- Run | Yrd Mat Min Distress Signals . | . . . Communications Jammed . | . . . Distress Signals . | . . . Times Spotted 25 | . 12 13 Peak Tracking Total 5 | . 5 3 Tactical Retreats 2 | . 1 1 Traps | -11 -10 -10 ------- Run | Yrd Mat Min Traps Triggered . | . . . Indirectly . | . . . Trap Hack Attempts . | . . . Triggered . | . . . Disarmed . | . . . Reprogrammed . | . . . Reused . | . . . Traps Extracted . | . . . Installed . | . . . Triggered . | . . . Machines | -11 -10 -10 ---------- Run | Yrd Mat Min Machines Disabled 2 | . 1 1 Max in Single Turn 1 | . 1 1 Machines Repaired . | . . . Machines Dismantled . | . . . Machines Sabotaged . | . . . Overloaded Fab Kills . | . . . Hacking | -11 -10 -10 --------- Run | Yrd Mat Min Machines Accessed 4 | . 2 2 Terminals 2 | . 2 . Fabricators . | . . . Repair Stations . | . . . Recycling Units . | . . . Scanalyzers . | . . . Garrison Access . | . . . Total Hacks 8 | . 6 2 Successful 2 | . . 2 Failed 6 | . 6 . Catastrophic 3 | . 3 . Database Lockouts . | . . . Manual . | . . . Terminals 6 | . 6 . Fabricators . | . . . Repair Stations . | . . . Recycling Units . | . . . Scanalyzers . | . . . Garrison Access . | . . . Terminal Hacks 2 | . . 2 Open Door 2 | . . 2 Fabricator Hacks . | . . . Repair Station Hacks . | . . . Recycling Unit Hacks . | . . . Scanalyzer . | . . . Garrison Access Hacks . | . . . Unauthorized Hacks . | . . . Terminals . | . . . Fabricators . | . . . Repair Stations . | . . . Recycling Units . | . . . Scanalyzers . | . . . Garrison Access . | . . . Data Cores Recovered 1 | . 1 . Used . | . . . Hacking Detections 2 | . 2 . Full Trace Events . | . . . Feedback Events . | . . . Feedback Blocked . | . . . Robot Schematics Acquired . | . . . Robots Built . | . . . Authchips . | . . . Time . | . . . Total Robot Build Rating . | . . . Part Schematics Acquired . | . . . Parts Built . | . . . Authchips . | . . . Time . | . . . Total Part Build Rating . | . . . Part Studies Acquired . | . . . Parts Repaired . | . . . Time . | . . . Parts Recycled . | . . . Recycled Matter . | . . . Retrieved Matter . | . . . Retrieved Components . | . . . Parts Scanalyzed . | . . . Part Schematics Acquired . | . . . Parts Damaged . | . . . Bothacking | -11 -10 -10 ------------ Run | Yrd Mat Min Used RIF Installer . | . . . Robots Hacked . | . . . Non-combat . | . . . Combat . | . . . Robot Hacks Applied . | . . . Relay Couplers Released . | . . . Fabnet Peak Effective % . | . . . Robots Rewired . | . . . Allies Hacked . | . . . Hacks Repelled . | . . . Allies | -11 -10 -10 -------- Run | Yrd Mat Min Total Allies . | . . . Largest Group . | . . . Highest-Rated Group . | . . . Highest-Rated Ally . | . . . Total Orders . | . . . Ally Attacks . | . . . Total Damage . | . . . Kills . | . . . Allies Corrupted . | . . . Allies Melted . | . . . Intel | -11 -10 -10 ------- Run | Yrd Mat Min Active Infowar (turns) 432 | 15 373 44 Seismic 432 | 15 373 44 Robot Analysis Total . | . . . Derelict Logs Recovered 1 | . . 1 Drone Launches . | . . . Drone Recoveries . | . . . Exploration | -11 -10 -10 ------------- Run | Yrd Mat Min Turns Passed 1227 | 110 373 744 Spaces Moved 574 | 52 179 343 Core 5 | 5 . . Treads 330 | . . 330 Legs 239 | 47 179 13 Wheels . | . . . Hover . | . . . Flight . | . . . Fastest Speed 50 | 50 120 120 Average Speed 143 | 116 120 160 Slowest Speed 190 | 120 120 190 Overloaded Moves . | . . . Propulsion Burnouts . | . . . Robots Hopped . | . . . Potential Cave-ins . | . . . Cave-ins Triggered . | . . . Exploration Rate (%) 38 | 5 30 80 Regions Visited 2 Branch Regions 1 Pre-discovered Areas . | . . . Known Exits Taken . | . . . Unknown Exits Taken 2 | 1 1 . Scrap Searched 1 | . . 1 Spaces Dug . | . . . Terrain Destroyed 2 | . 2 . Melee . | . . . Projectile . | . . . AOE 2 | . 2 . Terrain Rammed . | . . . Walls Destroyed . | . . . Machines Disabled . | . . . Actions | -11 -10 -10 --------- Run | Yrd Mat Min Total 882 | 79 306 497 Wait 206 | . 96 110 Move 572 | 51 178 343 Hop . | . . . Pick Up 19 | 5 7 7 Fast Attach 7 | 6 . 1 Attach 7 | 1 1 5 Detach . | . . . Swap 9 | . 4 5 Drop 9 | . 4 5 Fire 49 | 16 16 17 Melee 4 | . . 4 Ram . | . . . Kick . | . . . Crush . | . . . Escape Stasis . | . . . Rewire . | . . . Trap . | . . . Miscellaneous . | . . . Route ------- -11/Scrapyard -10/Materials -10/Mines (discovered 1 exit: [*Mat]) History --------- Turn | Location | Event 9 | -11/Scrapyard | Discovered new exit (range 15) 111 | -11/Scrapyard | Entered Materials 210 | -10/Materials | Discovered new exit (range 13) 309 | -10/Materials | Build established: Mutant 484 | -10/Materials | Entered Mines 559 | -10/Mines | Lost 4 parts (1p1n1u1w) 620 | -10/Mines | Assembled infested the area 625 | -10/Mines | Assisted by a Guerilla fighting off Assembled 705 | -10/Mines | Found the Drone Emporium 785 | -10/Mines | Learned Materials interactive machine intel 815 | -10/Mines | Discovered new exit (range 5) 823 | -10/Mines | Met a Derelict shopkeep closing up shop 1219 | -10/Mines | Core integrity fell below 50% 1223 | -10/Mines | Core integrity fell below 20% 1228 | -10/Mines | Destroyed by D-53 Grenadier with Mini Grenade Launcher Last Messages --------------- 01089_ T-07 Excavator is excavating. 01091_ U-05 Engineer lays Concrete. 01094_ T-07 Excavator is excavating. 01094_ U-05 Engineer builds a Wall. 01099_ T-07 Excavator is excavating. 01102_ U-05 Engineer lays Concrete. 01104_ T-07 Excavator is excavating. 01105_ U-05 Engineer lays Concrete. 01108_ T-07 Excavator is excavating. 01108_ U-05 Engineer lays Concrete. 01112_ T-07 Excavator is excavating. 01114_ U-05 Engineer lays Concrete. 01116_ T-07 Excavator is excavating. 01218_ The unstable cave ceiling collapses. 01218_ U-05 Engineer builds a Wall. 01219_ The unstable cave ceiling collapses. 01220_ Lgt. Treads destroyed. 01221_ D-53 Grenadier knocked back. 01224_ Lgt. Treads destroyed. 01227_ The unstable cave ceiling collapses. Map ----- +----------------------------------------------------+ | ???????????????????????????????????# #?????? | | ???????????????????????????????????# #?????? | | ???????????????????????????????????# #?????? | | ???????????????????????????????????# #?????? | | ???????????????????????????????????# #?????? | | ???????????????????????????????????? ??????? | | ???????????????????????????????????? ??????? | | ???????????????????????????????????? ??????? | | ###?????????????????????????????????"??????? | | #?????????????????????????????????"??????? | | #????????????????????????????????????????? | | #????????????????????????????????????????? | | " #????????#####???????????????????????????? | | " #???????## ##??????????????????????????? | | " #??????## ######?????????????????????? | | #??????# #?????????????????????? | | " ######## #?????????????? ?????? | | " ######## #??????????#?? ?????? | | " ##??????# #????????? ## ?????? | | ### ### ##???????# #######??# k ??????? | | ##### #?# #????????#u## ### ""??????? | | # #?# #???????## # ""??????? | | # ### ### ######??# """ ???? | | # #?# #??## #??? | | # #?# ######## #??## d #??? | | # #?# #??????# #### @ d #???? | | ### #??????# # #?????????? | | ## ##???# ##?????????? | | ##?# # ##??????????? | | #?# ### ##???????????? | | ##### #??# #????????????? | | #??### #???# #????????????? | | #????####????# #????????????? | | ##???????????? #????????????? | | #????????????? t #????????????? | | ### #????????????? #????????????? | | ???# #????????????###### ##????????????? | | ???? #?????????????????? ?????????????? | | ????# ##?????????????????? ?????????????? | | ?????###??????????????????? ?????????????? | | ???????????????????????????????????????????? | | ???????????????????????????????????????????? | | ???????????????????????????????????????????? | | ???????????????????????????????????????????? | | ???????????????????????????????????????????? | | ???????????????????????????????????????????? | | ???????????????????????????????????????????? | | | | | | | +----------------------------------------------------+ Best States ------------- Heat Dissipation 25 Energy Generation 14 Energy Capacity 250 Matter Stores 446 Matter Capacity 450 Sight Range 16 Terrain Scan Density 10 Evasion (%) 55 Recoil Reduction 2 Item Schematics ----------------- None Robot Schematics ------------------ None Fabricated ------------ Nothing Repaired ---------- Nothing Studied --------- None Alien Tech Used ----------------- None Achievements -------------- None Challenges ------------ None Game ------ Seed CloakingPointyFlakker Manual? 0 Play Time 00:14:01 Cumulative 14.3 hours Start 2025.12.22 @ 21:13:43 End 2025.12.22 @ 21:31:01 Sessions 1 Manual Loads 0 Difficulty Rogue Special Mode None Game No. 9 Rogue 9 Adventurer 0 Explorer 0 Win Type - Total 1 Types 1/0/0/0/0/0/0/0/0/0 Lore% 11 Gallery% 17 Achievement% 16 Wizard Run 0 Options --------- Layout 2 ASCII 0 Keyboard 0 Movement Mouse Keybinds 0 Fullscreen 1 Font 24/Smallcaps Map View 50x44 Zoom Use 0% Tactical HUD 1 Map Filters NONE Filters NONE Steam 1 RUN: 342c066a-ec7f-458e-b140-940c3884404e